[Event "2nd Serbia Open Masters 2022"]
[Site "Novi Sad"]
[Date "2022.07.02"]
[Round "5.39"]
[White "Koutlas, Nikolaos"]
[Black "Rozen, Eytan"]
[Result "1/2-1/2"]
[ECO "B12"]
[WhiteElo "2251"]
[BlackElo "2425"]
[Annotator "TA"]
[PlyCount "139"]
[EventDate "2022.06.28"]
[EventType "swiss"]
[EventCountry "SRB"]
[SourceTitle "playchess.com"]
[Source "ChessBase"]
[SourceQuality "1"]
[TimeControl "40/5400+30:900+30"]

{[%evp 9,139,6,2,8,41,36,84,92,127,127,134,92,84,88,88,74,91,98,128,122,134,145,187,107,189,184,237,174,200,194,199,199,493,491,491,472,481,480,1006,1006,1222,1189,2727,2654,29985,745,745,745,846,851,839,828,738,465,472,308,306,312,312,275,305,308,307,286,291,290,263,100,350,341,342,295,279,277,275,283,273,274,499,438,711,713,1494,1339,1701,1693,1525,1197,1413,1373,1325,1063,1417,1385,4184,2069,1096,237,2283,1942,1731,1599,5038,5032,5178,4926,5158,5123,5061,4880,2893,0,0,0,0,0,0,0,0,0,0,0,0,0,0,0,0,0,0,0,0,0]} 1. e4 {[%emt 0:00:05]} c6 {[%emt 0:01:03]} 2. d4 {[%emt 0:00:07]} d5 {[%emt 0:00:04]} 3. e5 {[%emt 0:00:07]} c5 {[%emt 0:01:45]} 4. Nf3 {[%emt 0:00:42]} cxd4 {[%emt 0:00:14]} 5. Qxd4 {[%emt 0:00:06]} Nc6 {[%emt 0:02:07]} 6. Qf4 {[%emt 0:00:06] B12: Caro-Kann: Advance Variation.} g6 {[%emt 0:03:29] White must now prevent ...Bh6.} 7. Nc3 {[%emt 0:02:27]} (7. Ng5 f6 8. exf6 Nxf6 $17) 7... Bg7 {[%emt 0:05:21] [#]} (7... e6 $14) 8. Be3 $146 {[%emt 0:11:36] White is better.} ({Predecessor:} 8. Nxd5 Bh6 9. Qc4 Be6 10. Bxh6 Nxh6 11. O-O-O Qa5 12. Qb5 Qxb5 13. Nc7+ {1-0 (34) Eg,K (1872)-Nickel,J (1788) Heusenstamm 2018}) 8... f6 {[%emt 0:21:20][%cal Rf6e5]} 9. Bb5 {[%emt 0:13:05] Hoping for 0-0-0.} e6 {[%emt 0:05:21]} 10. exf6 {[%emt 0:13:34]} Nxf6 {[%emt 0:01:21]} 11. Bc5 {[%emt 0:01:29]} Bf8 {[%emt 0:34:53]} 12. Bxf8 {[%emt 0:02:26] White is much more active.} Rxf8 {[%emt 0:00:08]} 13. O-O {[%emt 0:10:56]} Bd7 {[%emt 0:01:20]} 14. Bxc6 {[%emt 0:04:11]} bxc6 {[%emt 0:00:19]} 15. Rfe1 {[%emt 0:01:57]} Qb8 {[%emt 0:08:12]} 16. Qd4 {[%emt 0:03:01]} (16. Ne5 $1 $18) 16... Qd6 {[%emt 0:02:42]} (16... Qxb2 $2 17. Rab1 Qxc2 18. Rb7 $18) (16... Qb6 $16) 17. Na4 $18 {[%emt 0:01:54]} Nh5 {[%emt 0:02:49]} (17... Kf7 $142 18. Ne5+ Kg8) 18. Ng5 {[%emt 0:06:33]} Rf4 {[%emt 0:02:05]} 19. Qh8+ {[%emt 0:00:08]} Rf8 {[%emt 0:00:23]} 20. Qc3 {[%emt 0:04:14] Threatens to win with Nc5.} (20. Qxh7 O-O-O $11) 20... Qf4 $2 {[%emt 0:02:53]} (20... Rf5) 21. Rxe6+ {[%emt 0:03:22]} Kd8 {[%emt 0:02:03]} 22. Qa5+ {[%emt 0:02:40]} (22. Qc5 Rb8 23. Rae1 Qb4 $18) 22... Kc8 {[%emt 0:00:01]} 23. Qc5 {[%emt 0:00:41]} Rf5 {[%emt 0:01:30]} (23... Rb8 $142 24. g3 (24. Rxc6+ Bxc6 25. Qxc6+ Qc7 $18) 24... Qxf2+ 25. Qxf2 Rxf2) 24. Rxc6+ {[%emt 0:03:26]} Bxc6 {[%emt 0:00:01]} 25. Qxc6+ {[%emt 0:00:02]} Kb8 {[%emt 0:00:01]} 26. Qb5+ {[%emt 0:03:28]} Kc8 {[%emt 0:00:17] [#]} 27. Qa6+ {[%emt 0:00:04]} (27. Nc5 $142 $1 Qc7 28. Nge6 Nf6 29. Qa6+ Kb8 30. Nxc7 Kxc7 31. Re1 Ne4 32. Qb7+ Kd6 33. Nxe4+ dxe4 34. Qxe4) 27... Kb8 {[%emt 0:00:37]} 28. Nf3 {[%emt 0:01:31] aiming for Nc5.} Qc4 {[%emt 0:00:35] Against Nc5} 29. Qd6+ {[%emt 0:02:26]} Qc7 {[%emt 0:00:01]} 30. Qb4+ {[%emt 0:00:04]} Qb7 {[%emt 0:00:27]} 31. Qc3 {[%emt 0:00:02]} Nf6 {[%emt 0:01:09]} 32. Nc5 {[%emt 0:00:54] Pair of Knights!} Ne4 {[%emt 0:00:13]} 33. Nxe4 {[%emt 0:02:28]} (33. Nxb7 Nxc3 34. Nc5 Ne4 $14) 33... dxe4 {[%emt 0:00:02]} 34. Ne5 {[%emt 0:02:35]} Qc7 {[%emt 0:02:05]} 35. Qb4+ {[%emt 0:00:01]} Qb7 {[%emt 0:00:21]} 36. Qd4 {[%emt 0:00:07]} (36. Qd6+ Qc7 37. Qb4+ Qb7 $18) 36... Qc7 {[%emt 0:00:40]} 37. Nd7+ {[%emt 0:00:44]} Kb7 {[%emt 0:00:32]} 38. Rd1 $2 {[%emt 0:02:36] Really sharp!} ({Don't play} 38. Qxe4+ $6 Qc6 39. Qe7 Rc8 $16) (38. g4 $1 $18 {[%cal Rg4f5] and the rest is easy.} Rd8 39. Qxe4+ Qc6 40. gxf5 $1 Rxd7 41. Qxc6+ Kxc6 42. fxg6) 38... Rd8 $2 {[%emt 0:00:34]} (38... Rc8 $16 {was called for.}) 39. Qxe4+ {[%emt 0:00:26]} Qc6 {[%emt 0:00:17] [#]} 40. Nc5+ {[%emt 0:00:00][%mdl 512]} Rxc5 {[%emt 0:00:00]} 41. Qxc6+ {[%emt 0:01:05]} Rxc6 {[%emt 0:00:16][%cal Rd8d1]} 42. Rxd8 {[%emt 0:00:07]} Rxc2 {[%emt 0:00:03][%mdl 4096] Endgame ( -> ...Rc1+). KR-KR} 43. h4 {[%emt 0:00:35]} ({Not} 43. Rd7+ Kc6 44. Rd1 Rxb2 $11) 43... Rxb2 $2 {[%emt 0:06:46]} (43... Rc7 44. Rd6 Kc8) 44. Rd7+ {[%emt 0:00:04]} Kb8 {[%emt 0:00:34]} (44... Kc8 $142 45. Rxa7 Kd8 46. Rxh7 Ke8) 45. Rxh7 {[%emt 0:01:26]} Rxa2 {[%emt 0:00:02]} 46. Rh6 {[%emt 0:00:23]} Ra6 {[%emt 0:00:02]} 47. g4 {[%emt 0:00:38][%cal Bg2g4,Bg4g5][%mdl 32]} Kc7 {[%emt 0:03:03]} 48. Kg2 {[%emt 0:00:20] h5 is the strong threat.} Rd6 {[%emt 0:00:12]} 49. h5 {[%emt 0:00:48]} gxh5 {[%emt 0:00:19]} 50. Rxh5 {[%emt 0:00:04]} Kb6 {[%emt 0:03:38]} 51. Rh8 {[%emt 0:01:57]} a5 {[%emt 0:01:21]} 52. g5 {[%emt 0:00:26]} a4 {[%emt 0:02:16]} 53. Ra8 $2 {[%emt 0:00:15]} (53. f4 Kc5 54. Kf3) 53... Rd4 $2 {[%emt 0:00:06]} (53... Kb5 54. f4 Kb4) 54. Kg3 {[%emt 0:00:26]} Kb7 {[%emt 0:00:04]} 55. Re8 {[%emt 0:01:03]} a3 {[%emt 0:00:42]} 56. Re1 {[%emt 0:05:52]} a2 {[%emt 0:04:11]} 57. f4 {[%emt 0:00:41]} Ra4 {[%emt 0:00:31]} 58. Ra1 {[%emt 0:00:05]} Kc6 {[%emt 0:00:37] [#]} 59. g6 $1 {[%emt 0:02:29]} Ra8 {[%emt 0:00:30]} 60. Kg4 $2 {[%emt 0:01:33]} ({White should play} 60. g7 $18 {[%cal Oa1a2] Strongly threatening Rxa2!} Rg8 61. Rxa2 Rxg7+ 62. Kh4) 60... Kd6 $11 {[%emt 0:00:29] The position is equal.} 61. g7 {[%emt 0:02:09] And now Kh5 would win.} Ke7 $1 {[%emt 0:00:28]} 62. Kg5 {[%emt 0:01:40] White wants to mate with Kg6.} Kf7 {[%emt 0:00:15]} 63. Kh6 {[%emt 0:00:08]} Ra3 {[%emt 0:00:47]} 64. f5 {[%emt 0:01:30]} Rh3+ {[%emt 0:00:26]} 65. Kg5 {[%emt 0:00:05]} Rg3+ {[%emt 0:00:17]} 66. Kf4 {[%emt 0:00:11]} Rg2 {[%emt 0:00:26]} 67. Kf3 {[%emt 0:00:13]} Rg5 {[%emt 0:00:50]} 68. Ke4 {[%emt 0:00:06]} Rg2 {[%emt 0:00:15]} 69. f6 {[%emt 0:00:13]} Kxf6 {[%emt 0:00:08]} 70. Rxa2 {[%emt 0:00:03] Black defended with fortune.  Weighted Error Value: White=0.42/Black=0.70} 1/2-1/2

[Event "2nd Serbia Open Masters 2022"]
[Site "Novi Sad"]
[Date "2022.07.02"]
[Round "5.40"]
[White "Arpita, Mukherjee"]
[Black "Srbis, Jurica"]
[Result "1/2-1/2"]
[ECO "C76"]
[WhiteElo "2275"]
[BlackElo "2451"]
[Annotator "TA"]
[PlyCount "95"]
[EventDate "2022.06.28"]
[EventType "swiss"]
[EventCountry "SRB"]
[SourceTitle "playchess.com"]
[Source "ChessBase"]
[SourceQuality "1"]
[TimeControl "40/5400+30:900+30"]

{[%evp 14,95,24,39,43,40,48,22,36,35,41,11,38,41,39,20,17,7,8,8,13,0,0,0,-19,-40,0,0,39,22,7,13,23,18,25,26,97,37,35,45,129,74,156,147,148,152,151,134,158,97,119,117,123,70,92,29,56,22,58,63,68,50,100,0,51,38,109,83,810,820,678,9,9,13,9,13,77,72,96,31,32,-2037,-209,-145]} 1. e4 {[%emt 0:06:31]} e5 {[%emt 0:00:09]} 2. Nf3 {[%emt 0:00:07]} Nc6 {[%emt 0:00:06]} 3. Bb5 {[%emt 0:00:06]} a6 {[%emt 0:00:16]} 4. Ba4 {[%emt 0:00:15]} d6 {[%emt 0:00:19]} 5. c3 {[%emt 0:01:48]} Bd7 {[%emt 0:00:23]} 6. O-O {[%emt 0:00:25]} g6 {[%emt 0:00:10]} 7. d4 {[%emt 0:01:15]} Bg7 {[%emt 0:00:12]} 8. Re1 {[%emt 0:00:56]} b5 {[%emt 0:00:41] 8...Nf6 is a critical line. C76: Ruy Lopez: Deferred Steinitz: 5 c3 Bd7 6 d4 g6.} 9. Bc2 {[%emt 0:00:42]} exd4 {[%emt 1:32:44]} 10. Nxd4 {[%emt 0:05:51]} Nge7 {[%emt 0:00:00] The position is equal.} 11. Bg5 {[%emt 0:02:01]} h6 {[%emt 0:00:00] [#]} 12. Bh4 $146 {[%emt 0:02:12]} ({Predecessor:} 12. Nxc6 Bxc6 13. Be3 O-O 14. Bd4 Bb7 15. Bxg7 Kxg7 16. Qd4+ Kh7 17. Nd2 Nc6 18. Qe3 {0-1 (55) Abdulov,O (2337)-Kazimova,N (2262) Nakhchivan 2015}) 12... Qc8 {[%emt 0:00:00]} 13. f4 {[%emt 0:12:08]} O-O {[%emt 0:00:00]} 14. Nxc6 {[%emt 0:05:27]} Nxc6 {[%emt 0:00:00]} 15. Nd2 {[%emt 0:02:12]} b4 {[%emt 0:00:00]} 16. Qf3 {[%emt 0:03:23]} Rb8 {[%emt 0:00:00]} 17. Nc4 {[%emt 0:07:36]} bxc3 {[%emt 0:00:00]} 18. bxc3 {[%emt 0:00:02]} Be6 {[%emt 0:00:00]} 19. Bb3 {[%emt 0:01:18]} Rb5 {[%emt 0:00:00]} (19... a5 {feels hotter.} 20. Nd2 Qa6 21. Rad1 Bxb3 22. axb3 a4) 20. Rac1 {[%emt 0:06:27]} Rc5 {[%emt 0:00:00]} 21. Nd2 {[%emt 0:02:05]} Na5 {[%emt 0:00:00]} 22. Bf2 $36 {[%emt 0:02:06][%mdl 2048] White is pushing.} Nxb3 {[%emt 0:00:00]} 23. axb3 {[%emt 0:07:52]} Rb5 {[%emt 0:00:00]} 24. Bd4 {[%emt 0:00:53]} Qb7 {[%emt 0:00:00]} (24... Bxb3 $2 25. Bxg7 Kxg7 26. c4 Bxc4 27. Rxc4 $18) (24... Bxd4+ $11 25. cxd4 d5) 25. Bxg7 {[%emt 0:00:37]} (25. f5 $16 Bd7 26. Qg3) 25... Kxg7 $14 {[%emt 0:00:00]} 26. c4 {[%emt 0:01:01]} Rb4 {[%emt 0:00:00]} (26... Qb6+ $14 27. Kh1 Ra5) 27. f5 $16 {[%emt 0:01:17]} Bd7 {[%emt 0:00:00]} (27... gxf5 $142 28. Re3 Rg8) 28. Qc3+ $1 {[%emt 0:00:38]} f6 {[%emt 0:00:40] [#]} 29. fxg6 $1 {[%emt 0:00:32]} Qb6+ {[%emt 0:00:19]} 30. Kh1 {[%emt 0:00:22]} Qc5 {[%emt 0:00:46]} 31. Rf1 {[%emt 0:02:04]} (31. Nf3 $142) 31... a5 {[%emt 0:00:17]} 32. Nf3 {[%emt 0:00:50]} a4 {[%emt 0:01:17]} 33. bxa4 {[%emt 0:01:09]} (33. Nd4 $16) 33... Rxa4 $14 {[%emt 0:00:02]} 34. Nd4 {[%emt 0:03:49]} (34. Nh4 $16) 34... Qe5 {[%emt 0:00:59]} 35. Qd2 {[%emt 0:01:07] Hoping for Nf5+.} Kxg6 {[%emt 0:02:39]} 36. Nf5 {[%emt 0:01:23][%cal Bd4f5,Bf5e3,Be3d5][%mdl 32]} Rh8 {[%emt 0:00:45]} (36... Bxf5 $2 37. exf5+ Kg7 38. Rce1 $18) 37. Rc3 {[%emt 0:01:31][%cal Oc4c5,Bc1c3,Bc3f3,Bf3f6][%mdl 32] c5! is the strong threat.} (37. Rce1 $5 {[%cal Rd2d3]}) 37... Ra2 {[%emt 0:02:27]} 38. Qe1 {[%emt 0:10:17] Chess con chili. White is more active.} (38. Qxa2 $16 Qxc3 39. Qe2) 38... Kf7 {[%emt 0:00:54]} (38... Rg8 $11) 39. Rcf3 $1 {[%emt 0:01:06]} h5 {[%emt 0:02:44]} ({Better is} 39... Bc6 $1 $14 40. Ne3 Rg8) 40. Ne3 {[%emt 0:00:00]} Qxe4 $2 {[%emt 0:00:00][%mdl 8192]} (40... Rh6 $16) 41. Rxf6+ $18 {[%emt 0:04:48]} (41. Qc3 Qe5 42. Rxf6+ Ke7 $18) 41... Ke8 {[%emt 0:04:07] [#]} 42. Qg3 $2 {[%emt 0:00:24]} (42. Qb4 $1 $18 {White wants to mate with Qb8+.} Ra8 (42... Kd8 43. Qb8+) 43. Nd5) 42... Kd8 $11 {[%emt 0:02:14]} 43. Nd5 {[%emt 0:12:35] aiming for Nc3.} Qg4 {[%emt 0:07:26]} 44. Qxg4 {[%emt 0:04:34]} Bxg4 {[%emt 0:02:50]} (44... hxg4 $11 {remains equal.} 45. Kg1 Bc6) 45. h3 $16 {[%emt 0:00:17]} Be2 {[%emt 0:00:20]} 46. Rf8+ {[%emt 0:00:06]} ({White should try} 46. Rb1 $16 Bxc4 47. Rb8+ Kd7 48. Rf7+ (48. Rxh8 Bxd5 49. Rg6 c5 $16) 48... Ke6 49. Re7+ Kxd5 50. Rxh8) 46... Rxf8 $14 {[%emt 0:00:01]} 47. Rf4 {[%emt 0:04:55][%mdl 8192]} (47. Rxf8+ $14 Kd7 48. Rf7+ Kd8 49. Rxc7) 47... Rf7 $2 48. Rxf7 {[%emt 0:00:00] Both players deserved the win here.  Weighted Error Value: White=0.45/Black=0.43} 1/2-1/2

[Event "2nd Serbia Open Masters 2022"]
[Site "Novi Sad"]
[Date "2022.07.02"]
[Round "5.41"]
[White "Antova, Gabriela"]
[Black "Badelka, Olga"]
[Result "0-1"]
[ECO "A13"]
[WhiteElo "2293"]
[BlackElo "2453"]
[Annotator "TA"]
[PlyCount "74"]
[EventDate "2022.06.28"]
[EventType "swiss"]
[EventCountry "SRB"]
[SourceTitle "playchess.com"]
[Source "ChessBase"]
[SourceQuality "1"]
[TimeControl "40/5400+30:900+30"]

{[%evp 12,74,27,0,4,28,24,7,10,0,0,-26,-18,-22,-18,-28,-25,-43,-46,-81,-105,-91,-90,-145,-57,-92,-50,-129,-78,-104,-26,-25,-19,-18,-28,-52,-21,-75,-51,-560,-534,-550,-554,-545,-517,-544,-534,-543,-540,-356,-347,-627,-627,-628,-631,-568,-535,-1109,-1046,-1046,-1005,-942,-942,-794,-784]} 1. Nf3 {[%emt 0:04:57]} Nf6 {[%emt 0:00:36]} 2. c4 {[%emt 0:00:19]} e6 {[%emt 0:00:10]} 3. b3 {[%emt 0:03:31]} d5 {[%emt 0:00:24]} 4. e3 {[%emt 0:00:23]} c5 {[%emt 0:01:40]} 5. Bb2 {[%emt 0:03:25]} Nc6 {[%emt 0:00:25]} 6. cxd5 {[%emt 0:01:37]} exd5 {[%emt 0:00:06]} 7. Bb5 {[%emt 0:00:29]} Bg4 {[%emt 0:03:56] A13: English Opening: 1...e6.} 8. h3 {[%emt 0:03:47]} Bh5 {[%emt 0:00:41]} 9. O-O {[%emt 0:09:13]} Bd6 {[%emt 0:01:07] The position is equal.} 10. d4 {[%emt 0:08:53]} cxd4 {[%emt 0:00:24]} 11. Qxd4 {[%emt 0:08:57]} Bxf3 {[%emt 0:05:33]} 12. gxf3 {[%emt 0:00:27]} O-O {[%emt 0:00:18]} 13. Bxc6 {[%emt 0:04:04]} bxc6 {[%emt 0:00:11]} 14. Nd2 {[%emt 0:03:38] [#]} Re8 $146 {[%emt 0:07:47] ...Be5 is the strong threat.} ({Predecessor:} 14... Qd7 15. Qh4 Be7 16. Rfd1 a5 17. Nc4 Qe6 18. Ne5 Nd7 19. Qg3 Bd6 20. f4 Bxe5 21. Bxe5 Nxe5 22. fxe5 {0-1 (56) Meulders,R (2300)-David,A (2425) Antwerp 1994}) 15. Qd3 {[%emt 0:09:58]} Qd7 {[%emt 0:07:37]} 16. Kg2 {[%emt 0:01:34]} Nh5 {[%emt 0:09:31]} 17. Rh1 {[%emt 0:03:01]} (17. Rg1 $142) 17... f5 {[%emt 0:03:12]} (17... Qe6 $17 {aiming for ...Rad8.} 18. Rac1 c5) 18. Rad1 {[%emt 0:04:52]} Rad8 $1 {[%emt 0:07:25]} 19. Kf1 {[%emt 0:08:46]} ({White should try} 19. Rhg1 $15) 19... f4 {[%emt 0:03:10]} ({Black should play} 19... Qe6 $1 20. Re1 Bb4) 20. e4 $17 {[%emt 0:00:13]} Be5 {[%emt 0:00:53]} ({Better is} 20... Bb4 $1 $17 {And now ...dxe4 would win.} 21. Kg2 Re6) 21. Bxe5 $11 {[%emt 0:02:38]} Rxe5 {[%emt 0:00:04]} 22. Nc4 {[%emt 0:00:57]} Re6 {[%emt 0:06:55]} 23. exd5 {[%emt 0:01:40]} cxd5 {[%emt 0:00:15]} 24. Nb2 {[%emt 0:04:30] [#]} (24. h4 $11) 24... Rde8 $1 $17 {[%emt 0:13:39][%cal Oh5g3] Strongly threatening ...Ng3+! Black is more active.} 25. Qxd5 $2 {[%emt 0:07:17][%mdl 8192] Now White is beyond hope.} (25. Qd4 $1 $15) 25... Qxd5 $19 {[%emt 0:00:35]} 26. Rxd5 {[%emt 0:00:02] [#]} Ng3+ {[%emt 0:00:05][%mdl 512]} 27. Kg2 {[%emt 0:00:31]} Nxh1 {[%emt 0:00:05]} 28. Kxh1 {[%emt 0:00:09][%mdl 4096] Endgame KRR-KRN} Re2 {[%emt 0:03:14]} 29. Nd3 {[%emt 0:00:08]} Rxa2 {[%emt 0:00:10]} 30. Kg2 {[%emt 0:00:56]} Rd2 {[%emt 0:03:18]} 31. b4 $2 {[%emt 0:01:40]} (31. h4) 31... h6 {[%emt 0:02:06] Black is clearly winning.} 32. Nxf4 {[%emt 0:00:55]} Rxd5 {[%emt 0:00:16]} 33. Nxd5 {[%emt 0:00:02] KR-KN} Rb8 {[%emt 0:04:33] White must now prevent ...Kf7.} 34. f4 {[%emt 0:00:15]} Rb5 {[%emt 0:01:03]} 35. Ne7+ {[%emt 0:00:37]} Kf8 {[%emt 0:00:09]} 36. Nc6 {[%emt 0:00:27]} a6 {[%emt 0:00:13]} 37. Kf3 {[%emt 0:00:29]} Rb6 {[%emt 0:00:11] Weighted Error Value: White=0.54/Black=0.10 (very precise)} 0-1

[Event "2nd Serbia Open Masters 2022"]
[Site "Novi Sad"]
[Date "2022.07.02"]
[Round "5.42"]
[White "Prraneeth Vuppala"]
[Black "Souhardo Basak"]
[Result "0-1"]
[ECO "B52"]
[WhiteElo "2447"]
[BlackElo "2357"]
[Annotator "TA"]
[PlyCount "124"]
[EventDate "2022.06.28"]
[EventType "swiss"]
[EventCountry "SRB"]
[SourceTitle "playchess.com"]
[Source "ChessBase"]
[SourceQuality "1"]
[TimeControl "40/5400+30:900+30"]

{[%evp 21,124,22,22,26,23,26,19,23,34,30,58,24,49,26,36,57,59,39,32,-1,9,7,15,12,13,10,13,0,31,28,89,96,86,62,62,12,11,5,15,0,67,62,46,-315,-268,-256,-263,-278,-254,-279,-270,-257,-264,-324,-326,-318,-326,-319,-304,-536,-305,-298,-305,-289,-287,-279,-268,-256,-255,-251,-231,-214,-201,-464,-486,-463,-472,-415,-401,-386,-363,-900,-892,-864,-801,-1539,-1152,-5704,-6977,-4551,-3800,-2508,-2622,-2475,-2781,-2310,-2235,-1526,-1487,-12847,-29937,-29966,-29969,-6111,-1362]} 1. e4 {[%emt 0:00:07]} c5 {[%emt 0:00:07]} 2. Nf3 {[%emt 0:00:13]} d6 {[%emt 0:00:11]} 3. Bb5+ {[%emt 0:00:28]} Bd7 {[%emt 0:00:11]} 4. Bxd7+ {[%emt 0:01:15]} Qxd7 {[%emt 0:00:04]} 5. c4 {[%emt 0:01:11]} Nc6 {[%emt 0:00:16]} 6. Nc3 {[%emt 0:01:20]} g6 {[%emt 0:00:10]} 7. d4 {[%emt 0:00:41]} cxd4 {[%emt 0:00:03]} 8. Nxd4 {[%emt 0:00:07]} Bg7 {[%emt 0:00:07]} 9. Be3 {[%emt 0:00:10]} Nf6 {[%emt 0:00:08]} 10. f3 {[%emt 0:00:44]} O-O {[%emt 0:00:15]} 11. O-O {[%emt 0:00:31]} a6 {[%emt 0:00:16]} 12. Qd3 {[%emt 0:02:12] B52: Sicilian: Moscow Variation with 3...Bd7.} Rab8 {[%emt 0:00:33] 12...Rfc8 is a critical line.} 13. Nxc6 {[%emt 0:12:16]} bxc6 {[%emt 0:01:22]} 14. b3 {[%emt 0:04:59] The position is equal.} Rfd8 {[%emt 0:10:41]} 15. Rad1 {[%emt 0:03:16] [#]} Qc8 $146 {[%emt 0:10:38]} ({Predecessor:} 15... Qc7 16. Qe2 Nd7 17. Na4 c5 18. f4 Qc6 19. Bd2 Bd4+ 20. Kh1 Nf6 21. Rde1 e6 {½-½ (44) Pachnicke,H (2109)-Burri,P (2126) ICCF email 2016}) 16. h3 {[%emt 0:19:49]} Nd7 {[%emt 0:10:00][%cal Bf6d7,Bd7f8,Bf8e6,Be6c5][%mdl 32]} 17. f4 {[%emt 0:07:50]} Qc7 {[%emt 0:04:11]} 18. Qc2 {[%emt 0:07:15]} Nf8 {[%emt 0:10:25]} 19. Ne2 {[%emt 0:06:27]} a5 {[%emt 0:10:35][%cal Oa5a4]} 20. Bd4 {[%emt 0:02:28]} Ne6 {[%emt 0:10:00]} 21. Bxg7 {[%emt 0:03:07]} Kxg7 {[%emt 0:00:02]} 22. Kh1 {[%emt 0:14:23]} Nc5 {[%emt 0:00:34]} 23. f5 {[%emt 0:01:08]} f6 {[%emt 0:03:17]} 24. Nd4 {[%emt 0:01:51]} Rh8 {[%emt 0:03:53]} 25. a3 {[%emt 0:02:56]} Rb6 {[%emt 0:02:50]} (25... Rb7 $11 {keeps the balance.}) 26. Rf3 $1 $16 {[%emt 0:01:12]} g5 {[%emt 0:00:47]} 27. Qc3 {[%emt 0:02:46]} Qa7 {[%emt 0:01:29]} 28. Ne6+ {[%emt 0:00:31]} (28. Qe1 $14) 28... Nxe6 $11 {[%emt 0:00:11]} 29. fxe6 {[%emt 0:00:02] Rdf1 is the strong threat.} Rhb8 {[%emt 0:02:33]} 30. Rb1 {[%emt 0:02:11]} h6 {[%emt 0:04:37]} ({Black should play} 30... c5 $11) 31. c5 {[%emt 0:00:09]} Rb5 {[%emt 0:02:20][%cal Bb6b5,Bb5c5,Bc5c3,Bc3c1,Bc1e1][%mdl 32]} (31... dxc5 $2 32. e5 Rf8 33. exf6+ exf6 34. Rd1 $18) 32. b4 {[%emt 0:01:34][%mdl 8192] White does not recover from this.} (32. cxd6 $14 {is the one way to stay ahead.} Re5 33. Rbf1 (33. Qxc6 Rxe6 34. Rd1 Rd8 $14)) 32... axb4 {[%emt 0:00:20]} ({Weaker is} 32... dxc5 33. e5 Rf8 34. exf6+ exf6 35. Rd3 $16) 33. axb4 {[%emt 0:00:25] [#] Black must now prevent Rbf1.} Rxc5 $1 {[%emt 0:01:18][%mdl 512]} 34. Ra1 {[%emt 0:01:19]} (34. bxc5 Rxb1+) 34... Rxc3 {[%emt 0:00:33]} 35. Rxa7 $19 {[%emt 0:00:03][%mdl 4096] Endgame KRR-KRR} Rc1+ $1 {[%emt 0:01:01]} 36. Kh2 {[%emt 0:00:02]} Kf8 {[%emt 0:00:18]} (36... Rxb4 $2 37. Rxe7+ Kf8 38. Rc7 Rxe4 39. Rxf6+ Kg8 40. e7 Rxe7 41. Rxe7 $18) 37. h4 {[%emt 0:01:24] And now hxg5 would win.} Rxb4 {[%emt 0:04:36]} 38. Ra8+ {[%emt 0:00:32]} Kg7 {[%emt 0:00:02]} 39. hxg5 {[%emt 0:00:32]} hxg5 {[%emt 0:00:38]} 40. e5 {[%emt 0:00:00]} (40. Ra7 {keeps fighting.} Rxe4 41. Rxe7+ Kg6 42. Re8) 40... Re1 {[%emt 0:00:00]} 41. exf6+ {[%emt 0:06:51]} exf6 {[%emt 0:02:32]} 42. Ra7+ {[%emt 0:00:12]} Kg6 {[%emt 0:00:22]} 43. e7 {[%emt 0:00:09]} Rh4+ {[%emt 0:04:17]} 44. Kg3 {[%emt 0:00:05]} Rhe4 {[%emt 0:01:14]} 45. Rd7 {[%emt 0:00:25]} Rxe7 {[%emt 0:00:47]} 46. Rxd6 {[%emt 0:00:05]} R7e6 {[%emt 0:00:20]} 47. Rdd3 {[%emt 0:00:13]} (47. Rxe6 Rxe6 48. Rc3) 47... f5 {[%emt 0:00:15]} 48. Rd8 {[%emt 0:01:36]} R1e3 {[%emt 0:03:59]} 49. Rg8+ {[%emt 0:00:50]} Kh6 {[%emt 0:00:02]} 50. Rf8 {[%emt 0:00:27] [#]} Rxf3+ {[%emt 0:00:54]} 51. gxf3 $2 {[%emt 0:01:13] [#] KR-KR} (51. Kxf3 f4 52. Kf2) 51... Kg6 $1 {[%emt 0:00:22]} 52. Rc8 {[%emt 0:01:27]} Kf6 {[%emt 0:00:54]} 53. Rg8 {[%emt 0:02:41]} Re3 {[%emt 0:01:23]} 54. Rf8+ {[%emt 0:02:12]} Ke6 {[%emt 0:00:36] Threatens to win with ...c5.} 55. Re8+ {[%emt 0:01:05]} Kf7 {[%emt 0:00:03]} 56. Rc8 {[%emt 0:00:49]} Rc3 {[%emt 0:01:32]} ({Inferior is} 56... f4+ 57. Kg4 $11) 57. Kf2 {[%emt 0:00:13]} f4 {[%emt 0:00:01]} 58. Kg2 {[%emt 0:01:53]} Ke6 {[%emt 0:01:10] Strongly threatening ...Rc5.} 59. Rg8 {[%emt 0:00:10]} Rc5 {[%emt 0:00:31] ( -> ...Re5)} 60. Kh3 {[%emt 0:00:40]} Re5 {[%emt 0:00:02]} 61. Kg4 {[%emt 0:01:01]} c5 {[%emt 0:00:30]} 62. Rc8 {[%emt 0:01:55]} Kd5 {[%emt 0:00:03] Weighted Error Value: White=0.66/Black=0.12 (very precise)} (62... Kd7 $142 63. Ra8 c4) 0-1